[Event "Early-Titled-Tuesday-Blitz-October-17-2023"]
[Site "Chess.com"]
[Date "2023.10.17"]
[Round "7"]
[White "tarno17"]
[Black "stratacticos"]
[Result "1-0"]
[WhiteElo "2123"]
[BlackElo "1717"]
[TimeControl "180+1"]
[EndTime "9:19:46 PDT"]
[Termination "tarno17 won by resignation"]

1. e4 {[%clk 0:03:00.9]} 1... c5 {[%clk 0:02:57.1]} 2. Nf3 {[%clk 0:02:56.5]}
2... Nc6 {[%clk 0:02:56.6]} 3. Bb5 {[%clk 0:02:56.2]} 3... Na5 {[%clk
0:02:54.3]} 4. O-O {[%clk 0:02:52.4]} 4... a6 {[%clk 0:02:54.1]} 5. Be2 {[%clk
0:02:52]} 5... Nc6 {[%clk 0:02:52.5]} 6. c3 {[%clk 0:02:51.8]} 6... Nf6 {[%clk
0:02:51.6]} 7. e5 {[%clk 0:02:51.8]} 7... Nd5 {[%clk 0:02:51]} 8. d4 {[%clk
0:02:51.8]} 8... cxd4 {[%clk 0:02:50.9]} 9. cxd4 {[%clk 0:02:51.7]} 9... g6
{[%clk 0:02:49.4]} 10. Bc4 {[%clk 0:02:49.5]} 10... Nc7 {[%clk 0:02:45.8]} 11.
Bxf7+ {[%clk 0:02:34.2]} 11... Kxf7 {[%clk 0:02:45.2]} 12. Ng5+ {[%clk
0:02:31.2]} 12... Kg7 {[%clk 0:02:42]} 13. f4 {[%clk 0:02:07.8]} 13... h6 {[%clk
0:02:39.1]} 14. Ne4 {[%clk 0:02:01.2]} 14... d5 {[%clk 0:02:32.3]} 15. exd6
{[%clk 0:01:57.8]} 15... exd6 {[%clk 0:02:32.1]} 16. d5 {[%clk 0:01:57.8]} 16...
Bf5 {[%clk 0:02:24.5]} 17. Ng3 {[%clk 0:01:44.4]} 17... Nxd5 {[%clk 0:01:57.2]}
18. Nxf5+ {[%clk 0:01:39.6]} 18... gxf5 {[%clk 0:01:55.7]} 19. Qxd5 {[%clk
0:01:40.2]} 19... Qb6+ {[%clk 0:01:55.1]} 20. Kh1 {[%clk 0:01:39.9]} 20... Qc5
{[%clk 0:01:54.7]} 21. Qf3 {[%clk 0:01:29.6]} 21... Be7 {[%clk 0:01:39.7]} 22.
Nc3 {[%clk 0:01:25]} 22... Bf6 {[%clk 0:01:00.8]} 23. Nd5 {[%clk 0:01:15.4]}
23... Nd4 {[%clk 0:00:59.7]} 24. Qg3+ {[%clk 0:01:12]} 24... Kf7 {[%clk
0:00:58.3]} 25. Nxf6 {[%clk 0:01:06.4]} 25... Kxf6 {[%clk 0:00:52.7]} 26. Be3
{[%clk 0:01:02.2]} 26... Rae8 {[%clk 0:00:43.5]} 27. Rad1 {[%clk 0:00:53.4]}
27... Ne2 {[%clk 0:00:37.6]} 28. Qh4+ {[%clk 0:00:52.4]} 1-0

[Event "Early-Titled-Tuesday-Blitz-October-17-2023"]
[Site "Chess.com"]
[Date "2023.10.17"]
[Round "7"]
[White "wadsy27"]
[Black "venturov"]
[Result "1-0"]
[WhiteElo "2663"]
[BlackElo "2464"]
[TimeControl "180+1"]
[EndTime "9:19:52 PDT"]
[Termination "wadsy27 won by resignation"]

1. Nf3 {[%clk 0:03:00.9]} 1... Nf6 {[%clk 0:02:59.8]} 2. g3 {[%clk 0:03:01]}
2... b6 {[%clk 0:02:55.7]} 3. Bg2 {[%clk 0:02:59.8]} 3... Bb7 {[%clk 0:02:56.3]}
4. c4 {[%clk 0:03:00.2]} 4... e6 {[%clk 0:02:55.4]} 5. O-O {[%clk 0:03:00.6]}
5... Be7 {[%clk 0:02:55.3]} 6. b3 {[%clk 0:03:00.3]} 6... O-O {[%clk 0:02:55]}
7. Bb2 {[%clk 0:03:00.5]} 7... c5 {[%clk 0:02:55.5]} 8. d4 {[%clk 0:03:00.6]}
8... cxd4 {[%clk 0:02:55.9]} 9. Qxd4 {[%clk 0:02:59.6]} 9... d6 {[%clk
0:02:47.1]} 10. Nc3 {[%clk 0:02:57.9]} 10... Nbd7 {[%clk 0:02:40.1]} 11. Rad1
{[%clk 0:02:53.4]} 11... a6 {[%clk 0:02:37.5]} 12. Rfe1 {[%clk 0:02:53.6]} 12...
Qc7 {[%clk 0:02:36]} 13. e4 {[%clk 0:02:53.3]} 13... Rfd8 {[%clk 0:02:35.7]} 14.
h3 {[%clk 0:02:51.5]} 14... Rac8 {[%clk 0:02:35.6]} 15. Qe3 {[%clk 0:02:51.5]}
15... Qb8 {[%clk 0:02:34.8]} 16. Nd4 {[%clk 0:02:34.9]} 16... Ba8 {[%clk
0:02:30.5]} 17. g4 {[%clk 0:02:32.3]} 17... h6 {[%clk 0:02:30.2]} 18. Nce2
{[%clk 0:02:21.6]} 18... b5 {[%clk 0:02:24.6]} 19. cxb5 {[%clk 0:02:20.4]} 19...
axb5 {[%clk 0:02:25.5]} 20. Ng3 {[%clk 0:02:20.3]} 20... d5 {[%clk 0:02:21.2]}
21. e5 {[%clk 0:02:15.4]} 21... Nh7 {[%clk 0:02:11.3]} 22. Ndf5 {[%clk
0:02:07.2]} 22... Bc5 {[%clk 0:01:52.7]} 23. Nxh6+ {[%clk 0:01:48.1]} 23... gxh6
{[%clk 0:01:52]} 24. Qxh6 {[%clk 0:01:48]} 24... Bf8 {[%clk 0:01:47.5]} 25. Qf4
{[%clk 0:01:40.8]} 25... Rc2 {[%clk 0:01:28.1]} 26. Bd4 {[%clk 0:01:40.3]} 26...
Bg7 {[%clk 0:01:19.7]} 27. Nh5 {[%clk 0:01:39.4]} 27... Rdc8 {[%clk 0:01:12.2]}
28. g5 {[%clk 0:01:37.1]} 28... Ndf8 {[%clk 0:01:10.2]} 29. Nf6+ {[%clk
0:01:33.7]} 29... Bxf6 {[%clk 0:01:08.9]} 30. gxf6 {[%clk 0:01:33.3]} 30... Nxf6
{[%clk 0:00:53.5]} 31. Qxf6 {[%clk 0:01:10.1]} 31... Qb7 {[%clk 0:00:44.2]} 32.
Rd3 {[%clk 0:01:08.3]} 32... Rc1 {[%clk 0:00:43.6]} 33. Qg5+ {[%clk 0:01:00.3]}
33... Ng6 {[%clk 0:00:43]} 34. Rxc1 {[%clk 0:01:00.6]} 34... Rxc1+ {[%clk
0:00:41.6]} 35. Qxc1 {[%clk 0:01:00.8]} 35... b4 {[%clk 0:00:40.1]} 36. Rg3
{[%clk 0:00:59.3]} 36... Qa6 {[%clk 0:00:38.1]} 37. h4 {[%clk 0:00:56.6]} 37...
Kh7 {[%clk 0:00:38.5]} 38. h5 {[%clk 0:00:56.8]} 1-0

[Event "Early-Titled-Tuesday-Blitz-October-17-2023"]
[Site "Chess.com"]
[Date "2023.10.17"]
[Round "7"]
[White "maurovargas01"]
[Black "Resignify"]
[Result "0-1"]
[WhiteElo "1927"]
[BlackElo "2355"]
[TimeControl "180+1"]
[EndTime "9:19:57 PDT"]
[Termination "Resignify won on time"]

1. e4 {[%clk 0:02:59.8]} 1... d6 {[%clk 0:03:00.3]} 2. f4 {[%clk 0:02:59.4]}
2... Nf6 {[%clk 0:02:58.7]} 3. Nc3 {[%clk 0:02:59]} 3... g6 {[%clk 0:02:58.3]}
4. Nf3 {[%clk 0:02:59.3]} 4... Bg7 {[%clk 0:02:56.8]} 5. Bb5+ {[%clk 0:02:59.5]}
5... c6 {[%clk 0:02:56.1]} 6. Ba4 {[%clk 0:02:59.6]} 6... b5 {[%clk 0:02:53]} 7.
Bb3 {[%clk 0:02:56.4]} 7... b4 {[%clk 0:02:53]} 8. e5 {[%clk 0:02:40.2]} 8...
bxc3 {[%clk 0:02:47.6]} 9. exf6 {[%clk 0:02:39.3]} 9... cxd2+ {[%clk 0:02:46.4]}
10. Bxd2 {[%clk 0:02:21.6]} 10... Bxf6 {[%clk 0:02:45.7]} 11. Ng5 {[%clk
0:02:17.7]} 11... d5 {[%clk 0:02:39]} 12. c4 {[%clk 0:02:00.5]} 12... Bxb2
{[%clk 0:02:23.1]} 13. Rb1 {[%clk 0:01:43.6]} 13... Bf6 {[%clk 0:02:20.6]} 14.
O-O {[%clk 0:01:41.6]} 14... O-O {[%clk 0:02:18.3]} 15. cxd5 {[%clk 0:01:37.6]}
15... cxd5 {[%clk 0:02:18.2]} 16. Qe1 {[%clk 0:01:33]} 16... e6 {[%clk
0:02:12.3]} 17. Qh4 {[%clk 0:01:31.5]} 17... h5 {[%clk 0:01:41]} 18. g4 {[%clk
0:01:28.5]} 18... Kg7 {[%clk 0:01:35.3]} 19. gxh5 {[%clk 0:01:21.1]} 19... Rh8
{[%clk 0:01:35.3]} 20. Qg3 {[%clk 0:01:02.2]} 20... Rxh5 {[%clk 0:01:31.9]} 21.
Bd1 {[%clk 0:00:21.1]} 21... Rh8 {[%clk 0:01:26.8]} 22. Nf3 {[%clk 0:00:18]}
22... Nd7 {[%clk 0:01:20.4]} 23. f5 {[%clk 0:00:15]} 23... exf5 {[%clk
0:01:14.2]} 24. Bc2 {[%clk 0:00:13.9]} 24... Nc5 {[%clk 0:01:10.1]} 25. Be3
{[%clk 0:00:06]} 25... Ne4 {[%clk 0:01:09.6]} 26. Qg2 {[%clk 0:00:01.7]} 26...
Ba6 {[%clk 0:01:04.7]} 0-1

[Event "Early-Titled-Tuesday-Blitz-October-17-2023"]
[Site "Chess.com"]
[Date "2023.10.17"]
[Round "7"]
[White "Alexander_Donchenko"]
[Black "VincentKeymer"]
[Result "0-1"]
[WhiteElo "2877"]
[BlackElo "3087"]
[TimeControl "180+1"]
[EndTime "9:20:01 PDT"]
[Termination "VincentKeymer won by resignation"]

1. Nf3 {[%clk 0:03:00.9]} 1... c5 {[%clk 0:02:59.7]} 2. g3 {[%clk 0:03:00.4]}
2... Nf6 {[%clk 0:03:00]} 3. Bg2 {[%clk 0:03:00.4]} 3... Nc6 {[%clk 0:03:00.6]}
4. O-O {[%clk 0:03:00.3]} 4... e5 {[%clk 0:03:00.9]} 5. e4 {[%clk 0:03:00.4]}
5... Be7 {[%clk 0:03:01]} 6. Nc3 {[%clk 0:02:59.2]} 6... d6 {[%clk 0:02:59]} 7.
d3 {[%clk 0:02:59.3]} 7... Bg4 {[%clk 0:02:58.7]} 8. h3 {[%clk 0:02:58.8]} 8...
Be6 {[%clk 0:02:59]} 9. Bg5 {[%clk 0:02:57]} 9... O-O {[%clk 0:02:55.2]} 10. a4
{[%clk 0:02:55.4]} 10... h6 {[%clk 0:02:54]} 11. Bxf6 {[%clk 0:02:55.4]} 11...
Bxf6 {[%clk 0:02:54.9]} 12. Nd2 {[%clk 0:02:53.8]} 12... g6 {[%clk 0:02:54.5]}
13. Nc4 {[%clk 0:02:52.9]} 13... Nd4 {[%clk 0:02:28.7]} 14. Nd5 {[%clk
0:02:49.4]} 14... Bg7 {[%clk 0:02:28.4]} 15. c3 {[%clk 0:02:47.6]} 15... Nc6
{[%clk 0:02:28.9]} 16. Rb1 {[%clk 0:02:42.9]} 16... Rc8 {[%clk 0:02:26.5]} 17.
b4 {[%clk 0:02:41.7]} 17... cxb4 {[%clk 0:02:24.3]} 18. cxb4 {[%clk 0:02:41.8]}
18... Nd4 {[%clk 0:02:20.5]} 19. b5 {[%clk 0:02:38]} 19... Bxd5 {[%clk 0:02:06]}
20. exd5 {[%clk 0:02:37.9]} 20... b6 {[%clk 0:02:06.9]} 21. h4 {[%clk 0:02:31]}
21... Rc5 {[%clk 0:02:05.9]} 22. Qd2 {[%clk 0:02:17.4]} 22... h5 {[%clk
0:02:03.6]} 23. Rfc1 {[%clk 0:02:06.2]} 23... Kh7 {[%clk 0:02:01.8]} 24. Ne3
{[%clk 0:02:06]} 24... Bh6 {[%clk 0:01:55.4]} 25. Rxc5 {[%clk 0:02:05.6]} 25...
dxc5 {[%clk 0:01:51.4]} 26. Qe1 {[%clk 0:01:59.6]} 26... Bxe3 {[%clk 0:01:42.6]}
27. fxe3 {[%clk 0:01:57.2]} 27... Nf5 {[%clk 0:01:42.8]} 28. Kh2 {[%clk
0:01:53.6]} 28... Nd6 {[%clk 0:01:41.8]} 29. Qc3 {[%clk 0:01:48.7]} 29... Qe7
{[%clk 0:01:37.6]} 30. Rf1 {[%clk 0:01:48.4]} 30... f5 {[%clk 0:01:25.2]} 31.
Rf2 {[%clk 0:01:47.8]} 31... f4 {[%clk 0:01:21.7]} 32. Qe1 {[%clk 0:01:05.4]}
32... fxg3+ {[%clk 0:01:15.2]} 33. Kxg3 {[%clk 0:01:06.3]} 33... Nf5+ {[%clk
0:01:15.6]} 34. Kh2 {[%clk 0:01:06.3]} 34... Qxh4+ {[%clk 0:01:12.1]} 35. Kg1
{[%clk 0:01:06.4]} 35... Rf6 {[%clk 0:01:00.2]} 36. Qc1 {[%clk 0:00:37]} 36...
Qg5 {[%clk 0:00:54.4]} 37. Qe1 {[%clk 0:00:34.2]} 37... Nxe3 {[%clk 0:00:52.6]}
38. Qxe3 {[%clk 0:00:30.7]} 38... Qxe3 {[%clk 0:00:52.2]} 0-1

[Event "Early-Titled-Tuesday-Blitz-October-17-2023"]
[Site "Chess.com"]
[Date "2023.10.17"]
[Round "7"]
[White "seopie"]
[Black "Aygehovit1992"]
[Result "1-0"]
[WhiteElo "2854"]
[BlackElo "2706"]
[TimeControl "180+1"]
[EndTime "9:20:06 PDT"]
[Termination "seopie won by resignation"]

1. d4 {[%clk 0:03:00.9]} 1... Nf6 {[%clk 0:02:58.7]} 2. c4 {[%clk 0:03:01.8]}
2... g6 {[%clk 0:02:58]} 3. Nc3 {[%clk 0:03:01.7]} 3... Bg7 {[%clk 0:02:58.5]}
4. e4 {[%clk 0:03:01.7]} 4... d6 {[%clk 0:02:59.1]} 5. h3 {[%clk 0:03:00.8]}
5... e5 {[%clk 0:02:58.6]} 6. dxe5 {[%clk 0:03:00.5]} 6... dxe5 {[%clk
0:02:59.5]} 7. Qxd8+ {[%clk 0:03:00.6]} 7... Kxd8 {[%clk 0:03:00]} 8. Nf3 {[%clk
0:03:01.5]} 8... Nc6 {[%clk 0:02:58.3]} 9. Bg5 {[%clk 0:02:58.5]} 9... Be6
{[%clk 0:02:47.4]} 10. Nd5 {[%clk 0:02:57.8]} 10... Bxd5 {[%clk 0:02:46.9]} 11.
cxd5 {[%clk 0:02:57.9]} 11... Nb4 {[%clk 0:02:40.5]} 12. Rc1 {[%clk 0:02:33.8]}
12... Kc8 {[%clk 0:01:37.3]} 13. a3 {[%clk 0:02:23.7]} 13... Na6 {[%clk
0:01:35]} 14. Bxa6 {[%clk 0:02:19.8]} 14... bxa6 {[%clk 0:01:35]} 15. Bxf6
{[%clk 0:02:17.4]} 15... Bxf6 {[%clk 0:01:34.7]} 16. Rc6 {[%clk 0:02:17.7]}
16... Bd8 {[%clk 0:01:25.7]} 17. Rxa6 {[%clk 0:02:14.7]} 17... f5 {[%clk
0:01:23.2]} 18. Ke2 {[%clk 0:02:01.5]} 18... fxe4 {[%clk 0:01:14.9]} 19. Nxe5
{[%clk 0:02:01.2]} 19... Re8 {[%clk 0:01:15.3]} 20. Nc6 {[%clk 0:01:56.4]} 20...
Kb7 {[%clk 0:01:12.2]} 21. Ra4 {[%clk 0:01:55.9]} 21... Bf6 {[%clk 0:01:12]} 22.
Rc1 {[%clk 0:01:50.7]} 22... a6 {[%clk 0:01:08.9]} 23. Rcc4 {[%clk 0:01:45]}
23... Kc8 {[%clk 0:00:45]} 24. b3 {[%clk 0:01:44.3]} 24... Bb2 {[%clk
0:00:37.9]} 25. Rxe4 {[%clk 0:01:24.5]} 25... Rxe4+ {[%clk 0:00:36.2]} 26. Rxe4
{[%clk 0:01:25]} 26... Bxa3 {[%clk 0:00:36.3]} 27. Re8+ {[%clk 0:01:24.8]} 27...
Kb7 {[%clk 0:00:36.5]} 28. Rxa8 {[%clk 0:01:24.9]} 28... Kxa8 {[%clk 0:00:37.4]}
29. f4 {[%clk 0:01:24.4]} 29... Kb7 {[%clk 0:00:34.5]} 30. Kd3 {[%clk
0:01:24.5]} 30... Kc8 {[%clk 0:00:32.2]} 31. g4 {[%clk 0:01:23.1]} 31... Kd7
{[%clk 0:00:32.6]} 32. Ke4 {[%clk 0:01:23.4]} 32... Kd6 {[%clk 0:00:32.2]} 33.
f5 {[%clk 0:01:19]} 33... gxf5+ {[%clk 0:00:33.1]} 34. gxf5 {[%clk 0:01:19.5]}
34... Bb2 {[%clk 0:00:33.8]} 35. Nd4 {[%clk 0:01:19.9]} 35... Kc5 {[%clk
0:00:28.2]} 36. Nf3 {[%clk 0:01:15.3]} 36... h6 {[%clk 0:00:22.5]} 37. Ne5
{[%clk 0:01:14]} 37... Kd6 {[%clk 0:00:17.3]} 38. Nc4+ {[%clk 0:01:13.8]} 1-0

[Event "Early-Titled-Tuesday-Blitz-October-17-2023"]
[Site "Chess.com"]
[Date "2023.10.17"]
[Round "7"]
[White "NowInChess"]
[Black "Juicy_Fork"]
[Result "0-1"]
[WhiteElo "2202"]
[BlackElo "2413"]
[TimeControl "180+1"]
[EndTime "9:20:08 PDT"]
[Termination "Juicy_Fork won on time"]

1. e4 {[%clk 0:03:00.9]} 1... e5 {[%clk 0:02:58.8]} 2. Nf3 {[%clk 0:02:59.9]}
2... Nc6 {[%clk 0:02:59.2]} 3. d4 {[%clk 0:03:00.3]} 3... exd4 {[%clk
0:02:55.9]} 4. Bc4 {[%clk 0:03:00.7]} 4... Nf6 {[%clk 0:02:55.8]} 5. e5 {[%clk
0:02:59.7]} 5... Ne4 {[%clk 0:02:55.7]} 6. O-O {[%clk 0:02:21.6]} 6... Be7
{[%clk 0:02:50.8]} 7. Bd5 {[%clk 0:02:11.7]} 7... Nc5 {[%clk 0:02:48.6]} 8. Bxc6
{[%clk 0:02:05.6]} 8... dxc6 {[%clk 0:02:44.6]} 9. Qxd4 {[%clk 0:02:02.9]} 9...
O-O {[%clk 0:02:41.8]} 10. Bf4 {[%clk 0:01:53.7]} 10... Bf5 {[%clk 0:02:36.7]}
11. Na3 {[%clk 0:01:27.1]} 11... Ne6 {[%clk 0:02:27]} 12. Qe3 {[%clk 0:01:02.3]}
12... Bc5 {[%clk 0:02:12.2]} 13. Qc1 {[%clk 0:00:50.7]} 13... Be4 {[%clk
0:02:06.8]} 14. Ng5 {[%clk 0:00:46.2]} 14... Nxg5 {[%clk 0:01:54]} 15. Bxg5
{[%clk 0:00:47.1]} 15... Qd5 {[%clk 0:01:54]} 16. Qf4 {[%clk 0:00:29.5]} 16...
Bxg2 {[%clk 0:01:42.4]} 17. Bf6 {[%clk 0:00:21.7]} 17... Bxf1 {[%clk 0:01:34.9]}
18. Rxf1 {[%clk 0:00:20.6]} 18... gxf6 {[%clk 0:01:32.3]} 19. Qxf6 {[%clk
0:00:14.2]} 19... Qe6 {[%clk 0:01:26]} 20. Qf4 {[%clk 0:00:13.3]} 20... Kh8
{[%clk 0:01:20.4]} 21. Kh1 {[%clk 0:00:12.9]} 21... Rg8 {[%clk 0:01:15.8]} 22.
Nc4 {[%clk 0:00:12]} 22... Raf8 {[%clk 0:01:07.1]} 23. Ne3 {[%clk 0:00:10.7]}
23... f6 {[%clk 0:00:57.6]} 24. Qh6 {[%clk 0:00:05.3]} 24... Bxe3 {[%clk
0:00:54.9]} 25. fxe3 {[%clk 0:00:04.4]} 25... Qd5+ {[%clk 0:00:54.5]} 26. e4
{[%clk 0:00:02.2]} 26... Qxe4+ {[%clk 0:00:54]} 0-1

[Event "Early-Titled-Tuesday-Blitz-October-17-2023"]
[Site "Chess.com"]
[Date "2023.10.17"]
[Round "7"]
[White "Nf3c5"]
[Black "sokidze"]
[Result "0-1"]
[WhiteElo "2608"]
[BlackElo "2790"]
[TimeControl "180+1"]
[EndTime "9:20:17 PDT"]
[Termination "sokidze won on time"]

1. d4 {[%clk 0:03:00.9]} 1... Nf6 {[%clk 0:02:58.9]} 2. Nf3 {[%clk 0:02:59.1]}
2... e6 {[%clk 0:02:58.8]} 3. Bg5 {[%clk 0:02:58.8]} 3... h6 {[%clk 0:02:46]} 4.
Bh4 {[%clk 0:02:56.1]} 4... c5 {[%clk 0:02:45.6]} 5. e3 {[%clk 0:02:23.5]} 5...
d5 {[%clk 0:02:45]} 6. c3 {[%clk 0:02:18.2]} 6... Bd6 {[%clk 0:02:41.9]} 7. Nbd2
{[%clk 0:02:17.7]} 7... Nbd7 {[%clk 0:02:40]} 8. Bd3 {[%clk 0:01:56.2]} 8... O-O
{[%clk 0:02:39.6]} 9. O-O {[%clk 0:01:52.4]} 9... e5 {[%clk 0:02:39.4]} 10. dxe5
{[%clk 0:01:31.4]} 10... Nxe5 {[%clk 0:02:39.2]} 11. Nxe5 {[%clk 0:01:31.4]}
11... Bxe5 {[%clk 0:02:39.7]} 12. Nf3 {[%clk 0:01:28.6]} 12... Bc7 {[%clk
0:02:27.4]} 13. Qc2 {[%clk 0:01:27.8]} 13... Bg4 {[%clk 0:02:19.8]} 14. Bf5
{[%clk 0:01:18.5]} 14... Qd6 {[%clk 0:02:00.5]} 15. Bg3 {[%clk 0:00:51.8]} 15...
Qe7 {[%clk 0:01:39.5]} 16. Bxg4 {[%clk 0:00:38.5]} 16... Nxg4 {[%clk 0:01:39.7]}
17. Qf5 {[%clk 0:00:38.4]} 17... Bxg3 {[%clk 0:01:32.3]} 18. Qxg4 {[%clk
0:00:35.4]} 18... Bc7 {[%clk 0:01:32]} 19. Rad1 {[%clk 0:00:35.9]} 19... Rad8
{[%clk 0:01:30.4]} 20. Rd2 {[%clk 0:00:36.3]} 20... f5 {[%clk 0:01:27.2]} 21.
Qa4 {[%clk 0:00:35.1]} 21... f4 {[%clk 0:01:23.3]} 22. exf4 {[%clk 0:00:33.6]}
22... Rxf4 {[%clk 0:01:21.7]} 23. Qb3 {[%clk 0:00:32.6]} 23... Rxf3 {[%clk
0:01:18.1]} 24. Rxd5 {[%clk 0:00:13.3]} 24... Rxd5 {[%clk 0:01:17.3]} 25. Qxd5+
{[%clk 0:00:13]} 25... Rf7 {[%clk 0:01:17.8]} 26. g3 {[%clk 0:00:09.7]} 26... b6
{[%clk 0:01:16.7]} 27. a4 {[%clk 0:00:08.2]} 27... Kh7 {[%clk 0:01:16.2]} 28. a5
{[%clk 0:00:08.5]} 28... bxa5 {[%clk 0:01:14.8]} 29. Qd3+ {[%clk 0:00:08.3]}
29... Kh8 {[%clk 0:01:13.6]} 30. Qb5 {[%clk 0:00:06.3]} 30... Bb6 {[%clk
0:01:12.4]} 31. Qd3 {[%clk 0:00:05.2]} 31... Qf6 {[%clk 0:01:12]} 32. Qd2 {[%clk
0:00:03.2]} 32... c4 {[%clk 0:01:11.7]} 33. Qd5 {[%clk 0:00:03.7]} 33... Qf3
{[%clk 0:01:04.8]} 34. Qxc4 {[%clk 0:00:03.2]} 34... Bxf2+ {[%clk 0:01:04.5]}
0-1

[Event "Early-Titled-Tuesday-Blitz-October-17-2023"]
[Site "Chess.com"]
[Date "2023.10.17"]
[Round "7"]
[White "Dewarfd"]
[Black "guillembaches"]
[Result "1/2-1/2"]
[WhiteElo "2213"]
[BlackElo "2509"]
[TimeControl "180+1"]
[EndTime "9:20:17 PDT"]
[Termination "Game drawn by repetition"]

1. d4 {[%clk 0:03:00]} 1... d5 {[%clk 0:03:00.1]} 2. e3 {[%clk 0:03:00.5]} 2...
Nf6 {[%clk 0:02:56]} 3. Nf3 {[%clk 0:03:00.7]} 3... g6 {[%clk 0:02:52.9]} 4. Be2
{[%clk 0:02:59.8]} 4... Bg7 {[%clk 0:02:52.9]} 5. O-O {[%clk 0:03:00.2]} 5...
O-O {[%clk 0:02:53]} 6. b4 {[%clk 0:03:00.7]} 6... c6 {[%clk 0:02:48.2]} 7. a4
{[%clk 0:02:59.2]} 7... Bf5 {[%clk 0:02:42.1]} 8. c4 {[%clk 0:02:54.5]} 8...
dxc4 {[%clk 0:02:33.6]} 9. Bxc4 {[%clk 0:02:54.6]} 9... Nbd7 {[%clk 0:02:32.6]}
10. Bd3 {[%clk 0:02:51]} 10... Bxd3 {[%clk 0:02:25.4]} 11. Qxd3 {[%clk
0:02:51.4]} 11... Nd5 {[%clk 0:02:14.9]} 12. b5 {[%clk 0:02:48.5]} 12... c5
{[%clk 0:02:10.6]} 13. Nc3 {[%clk 0:02:29.7]} 13... Nxc3 {[%clk 0:02:01.5]} 14.
Qxc3 {[%clk 0:02:29.5]} 14... Rc8 {[%clk 0:02:01.3]} 15. Qd3 {[%clk 0:02:19.6]}
15... cxd4 {[%clk 0:01:57.6]} 16. exd4 {[%clk 0:02:16.7]} 16... Nc5 {[%clk
0:01:45.2]} 17. Qe3 {[%clk 0:02:09.1]} 17... Ne6 {[%clk 0:01:40.9]} 18. Bb2
{[%clk 0:01:55.3]} 18... Rc2 {[%clk 0:01:28.7]} 19. Qb3 {[%clk 0:01:50.9]} 19...
Rxb2 {[%clk 0:01:21.5]} 20. Qxb2 {[%clk 0:01:51]} 20... Nxd4 {[%clk 0:01:21.6]}
21. Nxd4 {[%clk 0:01:44.6]} 21... Bxd4 {[%clk 0:01:17.7]} 22. Qb4 {[%clk
0:01:38.1]} 22... Bxa1 {[%clk 0:01:14.9]} 23. Rxa1 {[%clk 0:01:39]} 23... Qd7
{[%clk 0:01:09.9]} 24. h3 {[%clk 0:01:38.8]} 24... Rd8 {[%clk 0:01:05.8]} 25.
Rc1 {[%clk 0:01:35.2]} 25... h5 {[%clk 0:01:03.3]} 26. Qc5 {[%clk 0:01:31.1]}
26... b6 {[%clk 0:00:58]} 27. Qe5 {[%clk 0:01:25]} 27... Rc8 {[%clk 0:00:36.3]}
28. Rxc8+ {[%clk 0:01:17.8]} 28... Qxc8 {[%clk 0:00:36.9]} 29. Qxe7 {[%clk
0:01:18.2]} 29... Qc1+ {[%clk 0:00:35.5]} 30. Kh2 {[%clk 0:01:17.9]} 30... Qf4+
{[%clk 0:00:35.6]} 31. Kg1 {[%clk 0:01:16.8]} 31... Qxa4 {[%clk 0:00:35]} 32.
Qe8+ {[%clk 0:01:14.5]} 32... Kg7 {[%clk 0:00:32]} 33. Qe5+ {[%clk 0:01:15.1]}
33... Kh7 {[%clk 0:00:30]} 34. Qe7 {[%clk 0:01:04.1]} 34... Kg7 {[%clk
0:00:22.3]} 35. Qe5+ {[%clk 0:01:03.3]} 35... Kh7 {[%clk 0:00:21.9]} 36. Qe7
{[%clk 0:01:03.9]} 36... Kg7 {[%clk 0:00:19.8]} 37. Qe5+ {[%clk 0:01:03.6]}
1/2-1/2

[Event "Early-Titled-Tuesday-Blitz-October-17-2023"]
[Site "Chess.com"]
[Date "2023.10.17"]
[Round "7"]
[White "I_am_Javi"]
[Black "K_A_S_T_O_R"]
[Result "1/2-1/2"]
[WhiteElo "2757"]
[BlackElo "2868"]
[TimeControl "180+1"]
[EndTime "9:20:18 PDT"]
[Termination "Game drawn by repetition"]

1. e4 {[%clk 0:03:00.9]} 1... c6 {[%clk 0:02:58.5]} 2. d4 {[%clk 0:03:01.1]}
2... d5 {[%clk 0:02:59.1]} 3. e5 {[%clk 0:03:01.8]} 3... Bf5 {[%clk 0:02:59.5]}
4. c3 {[%clk 0:03:01.4]} 4... e6 {[%clk 0:02:57.9]} 5. Bd3 {[%clk 0:03:02]} 5...
Bxd3 {[%clk 0:02:57.8]} 6. Qxd3 {[%clk 0:03:02.9]} 6... Qb6 {[%clk 0:02:57.5]}
7. Ne2 {[%clk 0:03:03.8]} 7... c5 {[%clk 0:02:58]} 8. O-O {[%clk 0:02:54.6]}
8... Nc6 {[%clk 0:02:50.6]} 9. Nd2 {[%clk 0:02:49.8]} 9... cxd4 {[%clk 0:02:35]}
10. cxd4 {[%clk 0:02:50.7]} 10... Nge7 {[%clk 0:02:35.4]} 11. Nf3 {[%clk
0:02:50.4]} 11... Nf5 {[%clk 0:02:30.1]} 12. a3 {[%clk 0:02:48.3]} 12... Be7
{[%clk 0:02:26.4]} 13. b4 {[%clk 0:02:48.6]} 13... Rc8 {[%clk 0:02:25.3]} 14. g4
{[%clk 0:02:42.5]} 14... Nh4 {[%clk 0:02:21.2]} 15. Nxh4 {[%clk 0:02:43]} 15...
Bxh4 {[%clk 0:02:21.7]} 16. Be3 {[%clk 0:02:43.9]} 16... Be7 {[%clk 0:02:19.5]}
17. f4 {[%clk 0:02:42.5]} 17... h5 {[%clk 0:02:16.4]} 18. f5 {[%clk 0:02:42.5]}
18... hxg4 {[%clk 0:02:15.2]} 19. fxe6 {[%clk 0:02:42.8]} 19... fxe6 {[%clk
0:02:15.8]} 20. Qg6+ {[%clk 0:02:42.1]} 20... Kd7 {[%clk 0:02:16.2]} 21. Bf2
{[%clk 0:02:10.9]} 21... Rcf8 {[%clk 0:02:06.4]} 22. Qxg4 {[%clk 0:02:04.2]}
22... g5 {[%clk 0:02:05]} 23. Bg3 {[%clk 0:01:54]} 23... a5 {[%clk 0:01:58.6]}
24. bxa5 {[%clk 0:01:52]} 24... Nxa5 {[%clk 0:01:55.2]} 25. Rfb1 {[%clk
0:01:46.5]} 25... Qa6 {[%clk 0:01:53.2]} 26. a4 {[%clk 0:01:32.4]} 26... Qd3
{[%clk 0:01:51.3]} 27. Rb5 {[%clk 0:01:30.2]} 27... Bd8 {[%clk 0:01:48.6]} 28.
Rab1 {[%clk 0:01:28.1]} 28... b6 {[%clk 0:01:46.5]} 29. Rxd5+ {[%clk 0:00:55.9]}
29... Kc7 {[%clk 0:01:42.7]} 30. Rc1+ {[%clk 0:00:52.3]} 30... Kb8 {[%clk
0:01:42]} 31. Rxa5 {[%clk 0:00:42.7]} 31... bxa5 {[%clk 0:01:35.9]} 32. Qxe6
{[%clk 0:00:17.5]} 32... Qe3+ {[%clk 0:01:31.7]} 33. Kh1 {[%clk 0:00:17.7]}
33... Rxh2+ {[%clk 0:00:55.3]} 34. Bxh2 {[%clk 0:00:16.8]} 34... Qf3+ {[%clk
0:00:55]} 35. Kg1 {[%clk 0:00:17.1]} 35... Qf2+ {[%clk 0:00:52.2]} 36. Kh1
{[%clk 0:00:17.6]} 36... Qf3+ {[%clk 0:00:52.7]} 37. Kg1 {[%clk 0:00:18.2]}
37... Qf2+ {[%clk 0:00:53.2]} 38. Kh1 {[%clk 0:00:18.8]} 38... Qf3+ {[%clk
0:00:53.5]} 1/2-1/2